[Event "*** Titled Tuesday Blitz"]
[Site "Chess.com"]
[Date "2020.03.03"]
[Round "8"]
[White "Imre91"]
[Black "GadimbayliA"]
[Result "0-1"]
[WhiteElo "2757"]
[BlackElo "2903"]
[TimeControl "180+1"]
[EndTime "14:36:08 PST"]
[Termination "GadimbayliA won by resignation"]

1. d4 {[%clk 0:03:00.9]} 1... d5 {[%clk 0:02:50.8]} 2. Nf3 {[%clk 0:03:00.6]}
2... Nc6 {[%clk 0:02:50.8]} 3. Bf4 {[%clk 0:02:54.4]} 3... Nf6 {[%clk
0:02:50.5]} 4. e3 {[%clk 0:02:53.4]} 4... Nh5 {[%clk 0:02:50.6]} 5. Bg5 {[%clk
0:02:52.8]} 5... h6 {[%clk 0:02:50.5]} 6. Bh4 {[%clk 0:02:53.1]} 6... g5 {[%clk
0:02:50.9]} 7. Nfd2 {[%clk 0:02:51.3]} 7... Ng7 {[%clk 0:02:33.8]} 8. Bg3 {[%clk
0:02:50.8]} 8... Nf5 {[%clk 0:02:34.2]} 9. c4 {[%clk 0:02:48.8]} 9... e6 {[%clk
0:02:08.9]} 10. Nc3 {[%clk 0:02:40.3]} 10... Bg7 {[%clk 0:02:08.8]} 11. cxd5
{[%clk 0:02:36.5]} 11... exd5 {[%clk 0:02:09.2]} 12. Bb5 {[%clk 0:02:37.1]}
12... O-O {[%clk 0:02:07]} 13. O-O {[%clk 0:02:26]} 13... Nxg3 {[%clk
0:02:03.2]} 14. hxg3 {[%clk 0:02:25.9]} 14... Ne7 {[%clk 0:02:03.9]} 15. Bd3
{[%clk 0:02:24.4]} 15... c6 {[%clk 0:02:03.9]} 16. b4 {[%clk 0:02:24.5]} 16...
Bf5 {[%clk 0:01:59.1]} 17. Qc2 {[%clk 0:02:20.4]} 17... Qd7 {[%clk 0:01:56.4]}
18. Rab1 {[%clk 0:02:16.1]} 18... a6 {[%clk 0:01:44.6]} 19. Na4 {[%clk 0:02:14]}
19... Bxd3 {[%clk 0:01:41.9]} 20. Qxd3 {[%clk 0:02:14.9]} 20... Qc7 {[%clk
0:01:39.1]} 21. Rfc1 {[%clk 0:02:13.8]} 21... Rae8 {[%clk 0:01:36.8]} 22. Nc5
{[%clk 0:02:10]} 22... Nc8 {[%clk 0:01:34.1]} 23. a4 {[%clk 0:02:06.4]} 23...
Nd6 {[%clk 0:01:34.2]} 24. Ncb3 {[%clk 0:01:56.8]} 24... Qe7 {[%clk 0:01:27.5]}
25. g4 {[%clk 0:01:53.7]} 25... f5 {[%clk 0:01:26]} 26. gxf5 {[%clk 0:01:53.4]}
26... Rxf5 {[%clk 0:01:21.6]} 27. b5 {[%clk 0:01:48.2]} 27... axb5 {[%clk
0:01:17.9]} 28. axb5 {[%clk 0:01:49.1]} 28... cxb5 {[%clk 0:01:18.3]} 29. Rf1
{[%clk 0:01:43.5]} 29... Ref8 {[%clk 0:01:16.4]} 30. Nc1 {[%clk 0:01:42.8]}
30... g4 {[%clk 0:01:13.6]} 31. Ne2 {[%clk 0:01:42.7]} 31... Qf7 {[%clk
0:01:03.1]} 32. Nf4 {[%clk 0:01:35.6]} 32... h5 {[%clk 0:01:00.6]} 33. Qa3
{[%clk 0:01:31.4]} 33... Qf6 {[%clk 0:00:57.3]} 34. Qa2 {[%clk 0:01:28.7]} 34...
Qf7 {[%clk 0:00:50.2]} 35. Qa3 {[%clk 0:01:28.3]} 35... Rd8 {[%clk 0:00:46.2]}
36. Qa5 {[%clk 0:01:22]} 36... Bf6 {[%clk 0:00:43.1]} 37. Rbc1 {[%clk
0:01:15.2]} 37... Bg5 {[%clk 0:00:39.3]} 38. Rc7 {[%clk 0:01:14.4]} 38... Rd7
{[%clk 0:00:36.1]} 39. Rxd7 {[%clk 0:01:03.7]} 39... Qxd7 {[%clk 0:00:37]} 40.
Nxh5 {[%clk 0:01:04.2]} 40... Bd8 {[%clk 0:00:34.3]} 41. Qa8 {[%clk 0:00:54.6]}
41... Rxh5 {[%clk 0:00:34.5]} 42. Nb3 {[%clk 0:00:55.2]} 42... Qe7 {[%clk
0:00:31.3]} 43. g3 {[%clk 0:00:52.7]} 43... Kf7 {[%clk 0:00:29.7]} 44. Qb8
{[%clk 0:00:47.4]} 44... Qf8 {[%clk 0:00:27.2]} 45. Rc1 {[%clk 0:00:45.1]} 45...
Qh6 {[%clk 0:00:23.2]} 46. Kf1 {[%clk 0:00:42.8]} 46... Qf6 {[%clk 0:00:23.4]}
47. Ke2 {[%clk 0:00:37.2]} 47... Qf3+ {[%clk 0:00:23.4]} 48. Kd3 {[%clk
0:00:36.7]} 48... Qf5+ {[%clk 0:00:21.8]} 49. Ke2 {[%clk 0:00:36.8]} 49... Rh8
{[%clk 0:00:15.4]} 50. Qxd6 {[%clk 0:00:35.3]} 50... Qf3+ {[%clk 0:00:15.7]} 51.
Kd3 {[%clk 0:00:35.4]} 51... Qf5+ {[%clk 0:00:13.8]} 52. Kc3 {[%clk 0:00:34.5]}
52... Be7 {[%clk 0:00:12.2]} 53. Qf4 {[%clk 0:00:29.5]} 53... Rc8+ {[%clk
0:00:10]} 54. Kd2 {[%clk 0:00:29.2]} 54... Qxf4 {[%clk 0:00:07.8]} 55. gxf4
{[%clk 0:00:26.9]} 55... Rxc1 {[%clk 0:00:08.7]} 56. Nxc1 {[%clk 0:00:25.7]}
56... Ke6 {[%clk 0:00:09.2]} 57. Nd3 {[%clk 0:00:24.9]} 57... Kf5 {[%clk
0:00:09.4]} 58. Ke2 {[%clk 0:00:25.3]} 58... Ba3 {[%clk 0:00:07.5]} 59. Kf1
{[%clk 0:00:21.7]} 59... Ke4 {[%clk 0:00:06.8]} 60. Ke2 {[%clk 0:00:21.9]} 60...
Kf5 {[%clk 0:00:05.2]} 61. f3 {[%clk 0:00:20.5]} 61... g3 {[%clk 0:00:04.8]} 62.
Kf1 {[%clk 0:00:20.6]} 62... b4 {[%clk 0:00:04.4]} 63. Nc5 {[%clk 0:00:20.5]}
63... Bc1 {[%clk 0:00:03.4]} 64. Kg2 {[%clk 0:00:20.7]} 64... Bxe3 {[%clk
0:00:03.4]} 65. Kxg3 {[%clk 0:00:20.8]} 65... Bxd4 {[%clk 0:00:04]} 66. Nd3
{[%clk 0:00:20.2]} 66... Bc3 {[%clk 0:00:03.8]} 67. Kf2 {[%clk 0:00:19.6]} 67...
b3 {[%clk 0:00:04]} 0-1

[Event "*** Titled Tuesday Blitz"]
[Site "Chess.com"]
[Date "2020.03.03"]
[Round "8"]
[White "Msb2"]
[Black "Tayson_7"]
[Result "0-1"]
[WhiteElo "2863"]
[BlackElo "2739"]
[TimeControl "180+1"]
[EndTime "14:36:08 PST"]
[Termination "Tayson_7 won on time"]

1. d4 {[%clk 0:03:00.9]} 1... Nf6 {[%clk 0:02:59.8]} 2. Nf3 {[%clk 0:03:01]}
2... g6 {[%clk 0:02:57.1]} 3. c4 {[%clk 0:03:00.8]} 3... c5 {[%clk 0:02:56.2]}
4. d5 {[%clk 0:03:00.5]} 4... Bg7 {[%clk 0:02:56.2]} 5. Nc3 {[%clk 0:03:00.7]}
5... O-O {[%clk 0:02:56.6]} 6. e4 {[%clk 0:03:01.1]} 6... d6 {[%clk 0:02:57.2]}
7. h3 {[%clk 0:03:01.5]} 7... e6 {[%clk 0:02:57.5]} 8. Bd3 {[%clk 0:03:01.9]}
8... Nbd7 {[%clk 0:02:57.5]} 9. Be3 {[%clk 0:03:00.6]} 9... a6 {[%clk
0:02:56.7]} 10. a4 {[%clk 0:03:00.7]} 10... Qe7 {[%clk 0:02:38.7]} 11. Qd2
{[%clk 0:02:59.3]} 11... b6 {[%clk 0:02:34.2]} 12. O-O {[%clk 0:02:50.1]} 12...
e5 {[%clk 0:02:34.2]} 13. g4 {[%clk 0:02:44.7]} 13... Kh8 {[%clk 0:02:26.3]} 14.
Nh2 {[%clk 0:02:39.3]} 14... Ng8 {[%clk 0:02:23]} 15. Kg2 {[%clk 0:02:20.7]}
15... a5 {[%clk 0:02:22.4]} 16. Ne2 {[%clk 0:02:20.3]} 16... h6 {[%clk
0:02:15.9]} 17. Ng3 {[%clk 0:02:18.4]} 17... Ndf6 {[%clk 0:02:15.5]} 18. Rh1
{[%clk 0:02:09.7]} 18... Nh7 {[%clk 0:02:14.6]} 19. h4 {[%clk 0:02:10.2]} 19...
Qxh4 {[%clk 0:02:04.3]} 20. g5 {[%clk 0:01:28.1]} 20... Qh3+ {[%clk 0:02:03.2]}
21. Kg1 {[%clk 0:01:27.7]} 21... h5 {[%clk 0:02:03.6]} 22. Nf3 {[%clk
0:01:23.7]} 22... Qd7 {[%clk 0:02:02.4]} 23. Nh4 {[%clk 0:01:18.5]} 23... Qe8
{[%clk 0:01:56.1]} 24. Be2 {[%clk 0:01:14.7]} 24... Ne7 {[%clk 0:01:14.6]} 25.
Qd1 {[%clk 0:00:54.3]} 25... f6 {[%clk 0:01:11.9]} 26. Nxh5 {[%clk 0:00:36.3]}
26... fxg5 {[%clk 0:01:06]} 27. Nxg7 {[%clk 0:00:35.7]} 27... Kxg7 {[%clk
0:01:05]} 28. Nf3 {[%clk 0:00:33.2]} 28... Rh8 {[%clk 0:00:45.9]} 29. Nxg5
{[%clk 0:00:24.7]} 29... Nxg5 {[%clk 0:00:44]} 30. Bxg5 {[%clk 0:00:25.6]} 30...
Rxh1+ {[%clk 0:00:43]} 31. Kxh1 {[%clk 0:00:26.5]} 31... Ng8 {[%clk 0:00:42.6]}
32. Kg2 {[%clk 0:00:20.5]} 32... Nh6 {[%clk 0:00:28]} 33. Qd2 {[%clk 0:00:19.4]}
33... Nf7 {[%clk 0:00:27.9]} 34. Rh1 {[%clk 0:00:19.5]} 34... Ra7 {[%clk
0:00:17.3]} 35. Qe3 {[%clk 0:00:17.8]} 35... Qxa4 {[%clk 0:00:05.4]} 36. Bh6+
{[%clk 0:00:17.7]} 36... Kg8 {[%clk 0:00:05.7]} 37. Qg3 {[%clk 0:00:16.9]} 37...
Nxh6 {[%clk 0:00:05.1]} 38. Rxh6 {[%clk 0:00:17.2]} 38... Rg7 {[%clk 0:00:05.5]}
39. Rxg6 {[%clk 0:00:16.5]} 39... Qd7 {[%clk 0:00:05.9]} 40. Bh5 {[%clk
0:00:03.4]} 40... Rxg6 {[%clk 0:00:05.4]} 41. Bxg6 {[%clk 0:00:04.3]} 41... Qg4
{[%clk 0:00:05.7]} 42. Qxg4 {[%clk 0:00:04.9]} 42... Bxg4 {[%clk 0:00:05.3]} 43.
f3 {[%clk 0:00:05.6]} 43... Bc8 {[%clk 0:00:04.5]} 44. Kf2 {[%clk 0:00:05]}
44... Ba6 {[%clk 0:00:04.6]} 45. b3 {[%clk 0:00:04.8]} 45... a4 {[%clk
0:00:04.8]} 46. bxa4 {[%clk 0:00:04.9]} 46... Bxc4 {[%clk 0:00:05.2]} 47. Be8
{[%clk 0:00:05.3]} 47... Kf8 {[%clk 0:00:05.6]} 48. Bc6 {[%clk 0:00:04.9]} 48...
Ke7 {[%clk 0:00:04.7]} 49. Ke3 {[%clk 0:00:05.5]} 49... Kf6 {[%clk 0:00:05.2]}
50. f4 {[%clk 0:00:04.7]} 50... exf4+ {[%clk 0:00:04.5]} 51. Kxf4 {[%clk
0:00:05.6]} 51... Bb3 {[%clk 0:00:05]} 52. Bb5 {[%clk 0:00:05.6]} 52... Bc2
{[%clk 0:00:04.5]} 53. Bc6 {[%clk 0:00:01.6]} 53... c4 {[%clk 0:00:04.4]} 54.
Bb5 {[%clk 0:00:02]} 54... c3 {[%clk 0:00:04.4]} 55. Ke3 {[%clk 0:00:02.5]}
55... Ke5 {[%clk 0:00:04.4]} 56. Bd3 {[%clk 0:00:01.6]} 56... Bxa4 {[%clk
0:00:04.8]} 0-1

[Event "*** Titled Tuesday Blitz"]
[Site "Chess.com"]
[Date "2020.03.03"]
[Round "8"]
[White "Ba_clbaf_osed_ingo_3v21"]
[Black "GrigorGrigorov"]
[Result "0-1"]
[WhiteElo "2631"]
[BlackElo "2762"]
[TimeControl "180+1"]
[EndTime "14:36:12 PST"]
[Termination "GrigorGrigorov won by resignation"]

1. Nf3 {[%clk 0:03:00.9]} 1... d5 {[%clk 0:02:57.3]} 2. c4 {[%clk 0:03:01.8]}
2... e6 {[%clk 0:02:50]} 3. g3 {[%clk 0:03:00.7]} 3... Nf6 {[%clk 0:02:45.7]} 4.
d4 {[%clk 0:03:00.7]} 4... dxc4 {[%clk 0:02:43.4]} 5. Bg2 {[%clk 0:03:00.8]}
5... Bd7 {[%clk 0:02:42.8]} 6. Ne5 {[%clk 0:02:59.3]} 6... Bc6 {[%clk
0:02:42.2]} 7. Nxc6 {[%clk 0:02:58.4]} 7... Nxc6 {[%clk 0:02:43.1]} 8. O-O
{[%clk 0:02:57.1]} 8... Qd7 {[%clk 0:02:43]} 9. e3 {[%clk 0:02:57.1]} 9... Rd8
{[%clk 0:02:42]} 10. Qc2 {[%clk 0:02:57.3]} 10... e5 {[%clk 0:02:34.3]} 11. Qxc4
{[%clk 0:02:45.6]} 11... exd4 {[%clk 0:02:32.4]} 12. exd4 {[%clk 0:02:44.7]}
12... Be7 {[%clk 0:02:15.3]} 13. Be3 {[%clk 0:02:44.3]} 13... O-O {[%clk
0:02:14.8]} 14. Rd1 {[%clk 0:02:40.8]} 14... Nb4 {[%clk 0:01:40.4]} 15. Nd2
{[%clk 0:02:30.7]} 15... Nbd5 {[%clk 0:01:38.6]} 16. Rac1 {[%clk 0:02:24.7]}
16... c6 {[%clk 0:01:38.5]} 17. Nf3 {[%clk 0:02:13]} 17... Bd6 {[%clk
0:01:26.3]} 18. Bg5 {[%clk 0:01:51.2]} 18... Qf5 {[%clk 0:01:21.6]} 19. Bxf6
{[%clk 0:01:46.8]} 19... Qxf6 {[%clk 0:01:11.5]} 20. Nd2 {[%clk 0:01:33.7]}
20... Bc7 {[%clk 0:01:09.7]} 21. Ne4 {[%clk 0:01:33.6]} 21... Qf5 {[%clk
0:00:59.1]} 22. Nc5 {[%clk 0:01:33.6]} 22... Qc8 {[%clk 0:00:59.2]} 23. b4
{[%clk 0:01:25.9]} 23... a6 {[%clk 0:00:50.8]} 24. a4 {[%clk 0:01:24.9]} 24...
b5 {[%clk 0:00:46.8]} 25. axb5 {[%clk 0:01:25.2]} 25... axb5 {[%clk 0:00:47.7]}
26. Qb3 {[%clk 0:01:24.3]} 26... Rfe8 {[%clk 0:00:44.3]} 27. Nd3 {[%clk
0:01:21.7]} 27... Qe6 {[%clk 0:00:43.3]} 28. Re1 {[%clk 0:01:14.5]} 28... Qd6
{[%clk 0:00:37]} 29. Ne5 {[%clk 0:01:14]} 29... Qh6 {[%clk 0:00:13.7]} 30. Nxc6
{[%clk 0:00:45.5]} 30... Rxe1+ {[%clk 0:00:12.9]} 31. Rxe1 {[%clk 0:00:45.9]}
31... Qxc6 {[%clk 0:00:12.9]} 32. Bxd5 {[%clk 0:00:45.6]} 32... Qf6 {[%clk
0:00:12]} 33. Bc6 {[%clk 0:00:33.8]} 33... Qxc6 {[%clk 0:00:09.5]} 34. Qd3
{[%clk 0:00:25.9]} 34... g6 {[%clk 0:00:08.2]} 35. Rd1 {[%clk 0:00:25.4]} 35...
Qd5 {[%clk 0:00:08.2]} 36. Rc1 {[%clk 0:00:25.6]} 36... Bd6 {[%clk 0:00:08.7]}
37. Qc3 {[%clk 0:00:13.8]} 37... Bf8 {[%clk 0:00:09]} 38. Rd1 {[%clk 0:00:13.5]}
38... Rd6 {[%clk 0:00:06.5]} 39. Qd2 {[%clk 0:00:12.4]} 39... Rc6 {[%clk
0:00:06]} 40. Re1 {[%clk 0:00:08.3]} 40... Rc4 {[%clk 0:00:06.4]} 41. Re8 {[%clk
0:00:08.4]} 41... Rxd4 {[%clk 0:00:05.5]} 42. Qc3 {[%clk 0:00:03.9]} 42... Rd1+
{[%clk 0:00:05.5]} 43. Re1 {[%clk 0:00:04.8]} 43... Rxe1+ {[%clk 0:00:05.6]} 44.
Qxe1 {[%clk 0:00:05.7]} 44... Qc4 {[%clk 0:00:06.2]} 45. Qe8 {[%clk 0:00:05.5]}
45... Qxb4 {[%clk 0:00:06.5]} 46. Qc6 {[%clk 0:00:06]} 46... Qc4 {[%clk
0:00:05.9]} 47. Qb7 {[%clk 0:00:05.4]} 47... b4 {[%clk 0:00:06.2]} 48. Kg2
{[%clk 0:00:06.3]} 48... b3 {[%clk 0:00:06.3]} 49. h4 {[%clk 0:00:07.2]} 49...
h5 {[%clk 0:00:06]} 50. g4 {[%clk 0:00:07.1]} 50... Qxg4+ {[%clk 0:00:06]} 51.
Kf1 {[%clk 0:00:07.3]} 51... Qc4+ {[%clk 0:00:05.9]} 52. Kg2 {[%clk 0:00:06.9]}
52... Qc2 {[%clk 0:00:06.8]} 53. Kg3 {[%clk 0:00:06.1]} 53... b2 {[%clk
0:00:07.3]} 54. f4 {[%clk 0:00:06.5]} 54... b1=Q {[%clk 0:00:07.5]} 0-1

[Event "*** Titled Tuesday Blitz"]
[Site "Chess.com"]
[Date "2020.03.03"]
[Round "8"]
[White "vova-79"]
[Black "Danfii"]
[Result "1-0"]
[WhiteElo "2553"]
[BlackElo "2412"]
[TimeControl "180+1"]
[EndTime "14:36:17 PST"]
[Termination "vova-79 won by checkmate"]

1. d4 {[%clk 0:03:00.9]} 1... Nf6 {[%clk 0:02:59.8]} 2. c4 {[%clk 0:02:59.9]}
2... e6 {[%clk 0:03:00]} 3. Nc3 {[%clk 0:02:59.7]} 3... Bb4 {[%clk 0:02:59.5]}
4. e3 {[%clk 0:02:59.1]} 4... O-O {[%clk 0:02:58.4]} 5. Ne2 {[%clk 0:02:59.3]}
5... Re8 {[%clk 0:02:58.2]} 6. a3 {[%clk 0:02:59.4]} 6... Bf8 {[%clk 0:02:58]}
7. Ng3 {[%clk 0:02:59.7]} 7... d5 {[%clk 0:02:55]} 8. Be2 {[%clk 0:02:59.9]}
8... b6 {[%clk 0:02:52.8]} 9. O-O {[%clk 0:02:59.8]} 9... Bb7 {[%clk 0:02:52]}
10. Bf3 {[%clk 0:02:58]} 10... c5 {[%clk 0:02:46.5]} 11. dxc5 {[%clk 0:02:55.3]}
11... bxc5 {[%clk 0:02:47.1]} 12. cxd5 {[%clk 0:02:24.2]} 12... exd5 {[%clk
0:02:48]} 13. e4 {[%clk 0:02:23.4]} 13... d4 {[%clk 0:02:45.1]} 14. e5 {[%clk
0:02:22.5]} 14... Nd5 {[%clk 0:02:25.8]} 15. Nxd5 {[%clk 0:02:06.5]} 15... Bxd5
{[%clk 0:02:26.7]} 16. b4 {[%clk 0:02:05.9]} 16... Nc6 {[%clk 0:02:21]} 17. bxc5
{[%clk 0:01:59.1]} 17... Bxc5 {[%clk 0:02:21.9]} 18. Ne4 {[%clk 0:01:52.4]}
18... Bb6 {[%clk 0:02:10.9]} 19. Bg5 {[%clk 0:01:49.3]} 19... Qd7 {[%clk
0:02:05.7]} 20. Bg4 {[%clk 0:01:41.1]} 20... Be6 {[%clk 0:01:57.2]} 21. Bxe6
{[%clk 0:01:36.5]} 21... Rxe6 {[%clk 0:01:52.1]} 22. f4 {[%clk 0:01:32.4]} 22...
Qd5 {[%clk 0:01:47.4]} 23. Nd6 {[%clk 0:01:23]} 23... h6 {[%clk 0:01:30.4]} 24.
Bh4 {[%clk 0:01:21]} 24... Bc5 {[%clk 0:01:13.8]} 25. Nf5 {[%clk 0:01:06.2]}
25... Qe4 {[%clk 0:01:02.5]} 26. Ng3 {[%clk 0:00:51.8]} 26... Qe3+ {[%clk
0:00:57.1]} 27. Kh1 {[%clk 0:00:51.2]} 27... Rb8 {[%clk 0:00:42.4]} 28. Rf3
{[%clk 0:00:49.2]} 28... Rb2 {[%clk 0:00:26.7]} 29. Rxe3 {[%clk 0:00:44.9]}
29... dxe3 {[%clk 0:00:27.4]} 30. Ne4 {[%clk 0:00:39.3]} 30... Bd4 {[%clk
0:00:26.5]} 31. Rb1 {[%clk 0:00:34]} 31... e2 {[%clk 0:00:21.3]} 32. Qe1 {[%clk
0:00:32.2]} 32... Rc2 {[%clk 0:00:21.2]} 33. Bf2 {[%clk 0:00:23.2]} 33... Bb2
{[%clk 0:00:18.5]} 34. Ng3 {[%clk 0:00:15.5]} 34... Nd4 {[%clk 0:00:16.4]} 35.
Bxd4 {[%clk 0:00:13.6]} 35... Bxd4 {[%clk 0:00:17.3]} 36. Nxe2 {[%clk
0:00:13.1]} 36... Bxe5 {[%clk 0:00:15.1]} 37. Qd1 {[%clk 0:00:10.7]} 37... Rc4
{[%clk 0:00:11.8]} 38. Rb8+ {[%clk 0:00:08.1]} 38... Kh7 {[%clk 0:00:10.4]} 39.
Qd3+ {[%clk 0:00:07.3]} 39... g6 {[%clk 0:00:10.6]} 40. Qxc4 {[%clk 0:00:06.8]}
40... Bxb8 {[%clk 0:00:11.3]} 41. g3 {[%clk 0:00:06.5]} 41... Bd6 {[%clk
0:00:10.9]} 42. a4 {[%clk 0:00:05]} 42... a5 {[%clk 0:00:10.5]} 43. Kg2 {[%clk
0:00:04.7]} 43... Bb4 {[%clk 0:00:10.5]} 44. Nd4 {[%clk 0:00:04]} 44... Rd6
{[%clk 0:00:10.6]} 45. Qxf7+ {[%clk 0:00:02.8]} 45... Kh8 {[%clk 0:00:10.4]} 46.
Ne6 {[%clk 0:00:02.5]} 46... Rd2+ {[%clk 0:00:10.3]} 47. Kf3 {[%clk 0:00:02.6]}
47... Bc3 {[%clk 0:00:11.2]} 48. Qf8+ {[%clk 0:00:01.3]} 48... Kh7 {[%clk
0:00:11.3]} 49. Qf7+ {[%clk 0:00:01.6]} 49... Kh8 {[%clk 0:00:11]} 50. Qxg6
{[%clk 0:00:01.3]} 50... h5 {[%clk 0:00:10.7]} 51. Qe8+ {[%clk 0:00:02.2]} 51...
Kh7 {[%clk 0:00:11]} 52. Qxh5+ {[%clk 0:00:02.5]} 52... Kg8 {[%clk 0:00:11.1]}
53. Qe8+ {[%clk 0:00:03.4]} 53... Kh7 {[%clk 0:00:10.7]} 54. f5 {[%clk
0:00:04.3]} 54... Kh6 {[%clk 0:00:11.6]} 55. Kg4 {[%clk 0:00:03.6]} 55... Rd4+
{[%clk 0:00:11.3]} 56. Nxd4 {[%clk 0:00:02.5]} 56... Bxd4 {[%clk 0:00:12.2]} 57.
Qg6# {[%clk 0:00:03]} 1-0

[Event "*** Titled Tuesday Blitz"]
[Site "Chess.com"]
[Date "2020.03.03"]
[Round "8"]
[White "SahajGrover"]
[Black "ZWISCHENZUGGED"]
[Result "0-1"]
[WhiteElo "2699"]
[BlackElo "2558"]
[TimeControl "180+1"]
[EndTime "14:36:30 PST"]
[Termination "ZWISCHENZUGGED won by resignation"]

1. g3 {[%clk 0:03:00.3]} 1... c5 {[%clk 0:02:59.4]} 2. Bg2 {[%clk 0:03:00.8]}
2... g6 {[%clk 0:02:59.3]} 3. c3 {[%clk 0:03:00.3]} 3... Bg7 {[%clk 0:02:59.2]}
4. d4 {[%clk 0:03:00.9]} 4... cxd4 {[%clk 0:03:00.1]} 5. cxd4 {[%clk 0:03:01.1]}
5... d5 {[%clk 0:02:59.7]} 6. Nc3 {[%clk 0:03:01.6]} 6... Nc6 {[%clk 0:02:54.8]}
7. Nxd5 {[%clk 0:02:48.2]} 7... Nxd4 {[%clk 0:02:47.2]} 8. Bf4 {[%clk
0:02:46.8]} 8... Ne6 {[%clk 0:02:42.1]} 9. Be3 {[%clk 0:02:01.8]} 9... Bd7
{[%clk 0:02:28.1]} 10. Rc1 {[%clk 0:01:54.5]} 10... Bc6 {[%clk 0:02:24.2]} 11.
Rxc6 {[%clk 0:01:52.4]} 11... bxc6 {[%clk 0:02:12.5]} 12. Qa4 {[%clk 0:01:52.8]}
12... Rc8 {[%clk 0:01:57.9]} 13. Nh3 {[%clk 0:01:13.7]} 13... Qd7 {[%clk
0:01:16.9]} 14. Nb4 {[%clk 0:01:03.9]} 14... c5 {[%clk 0:01:17.1]} 15. Qxd7+
{[%clk 0:00:25]} 15... Kxd7 {[%clk 0:01:18]} 16. Na6 {[%clk 0:00:21.6]} 16...
Bd4 {[%clk 0:01:01.7]} 17. Bd2 {[%clk 0:00:19.8]} 17... Nf6 {[%clk 0:00:57.1]}
18. O-O {[%clk 0:00:17.5]} 18... Nc7 {[%clk 0:00:45.4]} 19. Nxc7 {[%clk
0:00:13.3]} 19... Kxc7 {[%clk 0:00:35.3]} 20. Ng5 {[%clk 0:00:13.8]} 20... Rhf8
{[%clk 0:00:32.2]} 21. Ba5+ {[%clk 0:00:13.8]} 21... Kb8 {[%clk 0:00:30.5]} 22.
b3 {[%clk 0:00:14.4]} 22... h6 {[%clk 0:00:28.3]} 23. Nf3 {[%clk 0:00:14.1]}
23... e5 {[%clk 0:00:27]} 24. e3 {[%clk 0:00:14.2]} 24... Bb2 {[%clk 0:00:21.5]}
25. Rb1 {[%clk 0:00:14.7]} 25... e4 {[%clk 0:00:20.9]} 26. Rxb2 {[%clk 0:00:12]}
26... exf3 {[%clk 0:00:21.3]} 27. Bxf3 {[%clk 0:00:12.9]} 27... Rfe8 {[%clk
0:00:20.6]} 28. Rd2 {[%clk 0:00:12.8]} 28... Re6 {[%clk 0:00:17.4]} 29. Kg2
{[%clk 0:00:07.4]} 29... c4 {[%clk 0:00:16.5]} 30. bxc4 {[%clk 0:00:06.7]} 30...
Rxc4 {[%clk 0:00:17.4]} 31. Rb2+ {[%clk 0:00:07]} 31... Kc8 {[%clk 0:00:16.9]}
32. Bb7+ {[%clk 0:00:06.8]} 32... Kd7 {[%clk 0:00:17.1]} 33. Bf3 {[%clk
0:00:06.9]} 33... Ra4 {[%clk 0:00:14.6]} 34. Rd2+ {[%clk 0:00:07]} 34... Ke8
{[%clk 0:00:10.9]} 35. Bc7 {[%clk 0:00:02.7]} 35... Ne4 {[%clk 0:00:10.3]} 36.
Rd3 {[%clk 0:00:02.1]} 36... Rxa2 {[%clk 0:00:07.8]} 37. Bxe4 {[%clk 0:00:01.7]}
37... Rxe4 {[%clk 0:00:07.6]} 38. Bf4 {[%clk 0:00:01.7]} 38... g5 {[%clk
0:00:07]} 39. Bd6 {[%clk 0:00:02.1]} 39... Re6 {[%clk 0:00:06.7]} 40. Bc5 {[%clk
0:00:02.5]} 40... f5 {[%clk 0:00:05.9]} 41. Bd4 {[%clk 0:00:03.4]} 41... a5
{[%clk 0:00:06]} 42. Rc3 {[%clk 0:00:04.3]} 42... a4 {[%clk 0:00:06.3]} 43. Rc8+
{[%clk 0:00:04.5]} 43... Kd7 {[%clk 0:00:06.7]} 44. Ra8 {[%clk 0:00:05.1]} 44...
Kc7 {[%clk 0:00:06.1]} 45. Ra5 {[%clk 0:00:05]} 45... Kb7 {[%clk 0:00:05.6]} 46.
Rxf5 {[%clk 0:00:05.5]} 46... Ra6 {[%clk 0:00:04.6]} 47. Rf7+ {[%clk 0:00:05.8]}
47... Kc6 {[%clk 0:00:05.3]} 48. Rf6+ {[%clk 0:00:05.7]} 48... Kb5 {[%clk
0:00:06]} 49. Rf5+ {[%clk 0:00:06.2]} 49... Kc4 {[%clk 0:00:06.3]} 50. Rc5+
{[%clk 0:00:06.3]} 50... Kd3 {[%clk 0:00:06.3]} 51. Rc8 {[%clk 0:00:06.5]} 51...
Rc2 {[%clk 0:00:06.6]} 52. Rd8 {[%clk 0:00:06.8]} 52... Ke2 {[%clk 0:00:06.1]}
53. e4 {[%clk 0:00:06]} 53... a3 {[%clk 0:00:06.2]} 54. e5 {[%clk 0:00:05.7]}
54... a2 {[%clk 0:00:06.5]} 55. f4 {[%clk 0:00:04]} 55... gxf4 {[%clk
0:00:05.9]} 56. gxf4 {[%clk 0:00:04.9]} 56... Rd2 {[%clk 0:00:05.7]} 57. Kg3
{[%clk 0:00:02.2]} 57... Rxd4 {[%clk 0:00:05.7]} 58. Rxd4 {[%clk 0:00:03.1]}
58... a1=Q {[%clk 0:00:06.5]} 59. Re4+ {[%clk 0:00:03.8]} 59... Kd3 {[%clk
0:00:06.9]} 0-1